[Event "Titled Tuesday Blitz May 9 Late 2023"]
[White "Dragomirescu, Calin"]
[Black "DubiousM0ves532"]
[WhiteFideId "1200895"]
[WhiteElo "2010"]
[BlackElo "2443"]
[Result "0-1"]
[Round "07"]
[TimeControl "180+2"]
[Date "2023.05.09"]
[WhiteClock "0:02:04"]
[BlackClock "0:01:47"]

1. d4 {[%clk 0:03:00]}  d5 {[%clk 0:02:59]} 2. c4 {[%clk 0:03:00]}  e6 {[%clk 0:02:59]} 3. Nf3 {[%clk 0:03:00]}  Nf6 {[%clk 0:03:00]} 4. g3 {[%clk 0:03:01]}  dxc4 {[%clk 0:02:59]} 5. Bg2 {[%clk 0:03:02]}  Bd7 {[%clk 0:02:58]} 6. Ne5 {[%clk 0:03:01]}  Bc6 {[%clk 0:02:58]} 7. Nxc6 {[%clk 0:03:01]}  Nxc6 {[%clk 0:02:59]} 8. e3 {[%clk 0:03:00]}  Qd7 {[%clk 0:02:54]} 9. O-O {[%clk 0:03:00]}  O-O-O {[%clk 0:02:51]} 10. Qa4 {[%clk 0:02:59]}  Nd5 {[%clk 0:02:41]} 11. Nd2 {[%clk 0:02:56]}  Kb8 {[%clk 0:02:31]} 12. Qxc4 {[%clk 0:02:48]}  h5 {[%clk 0:02:29]} 13. h4 {[%clk 0:02:47]}  g5 {[%clk 0:02:28]} 14. Nf3 {[%clk 0:02:43]}  gxh4 {[%clk 0:02:20]} 15. Nxh4 {[%clk 0:02:43]}  Be7 {[%clk 0:02:21]} 16. e4 {[%clk 0:02:40]}  Nb6 {[%clk 0:02:19]} 17. Qd3 {[%clk 0:02:28]}  Nxd4 {[%clk 0:02:11]} 18. Nf3 {[%clk 0:02:15]}  Nxf3+ {[%clk 0:02:08]} 19. Qxf3 {[%clk 0:02:15]}  h4 {[%clk 0:02:00]} 20. Bf4 {[%clk 0:02:15]}  h3 {[%clk 0:01:51]} 21. Bh1 {[%clk 0:02:08]}  h2+ {[%clk 0:01:48]} 22. Kg2 {[%clk 0:02:08]}  e5 {[%clk 0:01:48]} 23. Be3 {[%clk 0:02:04]}  Qh3# {[%clk 0:01:47]} 0-1


[Site "https://www.chess.com"]

[Event "Titled Tuesday Blitz May 9 Late 2023"]
[White "Ardila, Oscar Humberto"]
[Black "Martin Barcelo, Carles"]
[WhiteFideId "4404742"]
[BlackFideId "24561444"]
[WhiteElo "1918"]
[BlackElo "2089"]
[Result "0-1"]
[Round "07"]
[TimeControl "180+2"]
[Date "2023.05.09"]
[WhiteClock "0:00:00"]
[BlackClock "0:00:08"]

1. d4 {[%clk 0:03:00]}  d5 {[%clk 0:02:57]} 2. c4 {[%clk 0:03:00]}  e6 {[%clk 0:02:57]} 3. Nc3 {[%clk 0:02:58]}  Nf6 {[%clk 0:02:57]} 4. Bg5 {[%clk 0:02:58]}  h6 {[%clk 0:02:52]} 5. Bh4 {[%clk 0:02:58]}  Be7 {[%clk 0:02:52]} 6. e3 {[%clk 0:02:56]}  b6 {[%clk 0:02:46]} 7. Nf3 {[%clk 0:02:53]}  O-O {[%clk 0:02:46]} 8. cxd5 {[%clk 0:02:48]}  Nxd5 {[%clk 0:02:46]} 9. Bxe7 {[%clk 0:02:48]}  Qxe7 {[%clk 0:02:47]} 10. Bd3 {[%clk 0:02:41]}  Nxc3 {[%clk 0:02:46]} 11. bxc3 {[%clk 0:02:40]}  c5 {[%clk 0:02:46]} 12. O-O {[%clk 0:02:39]}  Bb7 {[%clk 0:02:43]} 13. Ne5 {[%clk 0:02:39]}  Nd7 {[%clk 0:02:42]} 14. f4 {[%clk 0:02:35]}  Nf6 {[%clk 0:02:43]} 15. Qe2 {[%clk 0:02:31]}  Ne4 {[%clk 0:02:42]} 16. Rac1 {[%clk 0:02:24]}  Rfc8 {[%clk 0:02:36]} 17. Qc2 {[%clk 0:02:13]}  Nf6 {[%clk 0:02:28]} 18. Qb2 {[%clk 0:01:59]}  Be4 {[%clk 0:02:14]} 19. Qb1 {[%clk 0:01:50]}  Qb7 {[%clk 0:02:13]} 20. Bxe4 {[%clk 0:01:42]}  Nxe4 {[%clk 0:02:11]} 21. f5 {[%clk 0:01:40]}  Nd2 {[%clk 0:02:11]} 22. Qd3 {[%clk 0:01:35]}  Nxf1 {[%clk 0:02:11]} 23. Rxf1 {[%clk 0:01:35]}  exf5 {[%clk 0:02:10]} 24. Rxf5 {[%clk 0:01:34]}  Rc7 {[%clk 0:02:10]} 25. Qf1 {[%clk 0:01:31]}  f6 {[%clk 0:01:59]} 26. Ng4 {[%clk 0:01:27]}  Re8 {[%clk 0:01:55]} 27. d5 {[%clk 0:01:16]}  b5 {[%clk 0:01:48]} 28. Qf4 {[%clk 0:01:12]}  Rce7 {[%clk 0:01:25]} 29. Qg3 {[%clk 0:01:04]}  Kh8 {[%clk 0:01:19]} 30. Qh4 {[%clk 0:00:59]}  Qd7 {[%clk 0:01:08]} 31. Qh5 {[%clk 0:00:39]}  a5 {[%clk 0:00:55]} 32. h4 {[%clk 0:00:34]}  c4 {[%clk 0:00:54]} 33. Qg6 {[%clk 0:00:32]}  b4 {[%clk 0:00:44]} 34. Rh5 {[%clk 0:00:21]}  Rg8 {[%clk 0:00:17]} 35. cxb4 {[%clk 0:00:12]}  axb4 {[%clk 0:00:17]} 36. d6 {[%clk 0:00:10]}  Rf7 {[%clk 0:00:14]} 37. e4 {[%clk 0:00:08]}  Rd8 {[%clk 0:00:06]} 38. Nxh6 {[%clk 0:00:04]}  gxh6 {[%clk 0:00:06]} 39. Rxh6+ {[%clk 0:00:04]}  Rh7 {[%clk 0:00:06]} 40. Qxf6+ {[%clk 0:00:05]}  Kg8 {[%clk 0:00:05]} 41. Rg6+ {[%clk 0:00:04]}  Rg7 {[%clk 0:00:06]} 42. Rxg7+ {[%clk 0:00:04]}  Qxg7 {[%clk 0:00:06]} 43. Qxd8+ {[%clk 0:00:05]}  Kh7 {[%clk 0:00:07]} 44. Qc8 {[%clk 0:00:03]}  Qd4+ {[%clk 0:00:06]} 45. Kh2 {[%clk 0:00:04]}  Qxd6+ {[%clk 0:00:06]} 46. g3 {[%clk 0:00:04]}  c3 {[%clk 0:00:04]} 47. Kh3 {[%clk 0:00:05]}  Qd2 {[%clk 0:00:02]} 48. Qc7+ {[%clk 0:00:05]}  Kg6 {[%clk 0:00:02]} 49. Qc6+ {[%clk 0:00:05]}  Kf7 {[%clk 0:00:02]} 50. Qc7+ {[%clk 0:00:05]}  Ke6 {[%clk 0:00:03]} 51. Qc6+ {[%clk 0:00:04]}  Ke5 {[%clk 0:00:03]} 52. Qc7+ {[%clk 0:00:04]}  Kxe4 {[%clk 0:00:04]} 53. Qe7+ {[%clk 0:00:05]}  Kd3 {[%clk 0:00:05]} 54. Qxb4 {[%clk 0:00:05]}  c2 {[%clk 0:00:04]} 55. Qb5+ {[%clk 0:00:04]}  Ke3 {[%clk 0:00:05]} 56. Qc5+ {[%clk 0:00:04]}  Ke2 {[%clk 0:00:05]} 57. Qc4+ {[%clk 0:00:04]}  Qd3 {[%clk 0:00:06]} 58. Qe6+ {[%clk 0:00:04]}  Kd2 {[%clk 0:00:06]} 59. Qh6+ {[%clk 0:00:03]}  Kd1 {[%clk 0:00:07]} 60. Qh5+ {[%clk 0:00:01]}  Qe2 {[%clk 0:00:07]} 61. Qd5+ {[%clk 0:00:00]}  Ke1 {[%clk 0:00:08]} 0-1


[Site "https://www.chess.com"]

[Event "Titled Tuesday Blitz May 9 Late 2023"]
[White "Ingunza Curro, Andres"]
[Black "Sliwicki, Damian"]
[WhiteFideId "24526371"]
[BlackFideId "1127128"]
[WhiteElo "2247"]
[BlackElo "2030"]
[Result "0-1"]
[Round "07"]
[TimeControl "180+2"]
[Date "2023.05.09"]
[WhiteClock "0:01:17"]
[BlackClock "0:01:08"]

1. d4 {[%clk 0:03:00]}  e5 {[%clk 0:02:33]} 2. dxe5 {[%clk 0:02:54]}  Bc5 {[%clk 0:02:33]} 3. Nf3 {[%clk 0:02:50]}  d6 {[%clk 0:02:33]} 4. exd6 {[%clk 0:02:48]}  Ne7 {[%clk 0:02:34]} 5. e3 {[%clk 0:02:44]}  Bxd6 {[%clk 0:02:31]} 6. Be2 {[%clk 0:02:39]}  O-O {[%clk 0:02:30]} 7. c4 {[%clk 0:02:39]}  Nbc6 {[%clk 0:02:29]} 8. Nc3 {[%clk 0:02:38]}  Bf5 {[%clk 0:02:23]} 9. O-O {[%clk 0:02:38]}  Ng6 {[%clk 0:02:19]} 10. b3 {[%clk 0:02:28]}  Nge5 {[%clk 0:01:37]} 11. Bb2 {[%clk 0:02:19]}  Qf6 {[%clk 0:01:27]} 12. Nd5 {[%clk 0:01:59]}  Nxf3+ {[%clk 0:01:21]} 13. Bxf3 {[%clk 0:01:53]}  Qxb2 {[%clk 0:01:22]} 14. e4 {[%clk 0:01:47]}  Bg6 {[%clk 0:01:11]} 15. Rb1 {[%clk 0:01:19]}  Qe5 {[%clk 0:01:10]} 16. g3 {[%clk 0:01:17]}  Bxe4 {[%clk 0:01:08]} 0-1


[Site "https://www.chess.com"]

[Event "Titled Tuesday Blitz May 9 Late 2023"]
[White "Kostiukov, Alexandr"]
[Black "Koutsin"]
[WhiteFideId "14108100"]
[WhiteElo "2202"]
[BlackElo "2426"]
[Result "0-1"]
[Round "07"]
[TimeControl "180+2"]
[Date "2023.05.09"]
[WhiteClock "0:00:03"]
[BlackClock "0:00:36"]

1. g3 {[%clk 0:03:00]}  d5 {[%clk 0:02:57]} 2. Bg2 {[%clk 0:03:00]}  g6 {[%clk 0:02:57]} 3. d3 {[%clk 0:02:59]}  Bg7 {[%clk 0:02:57]} 4. e4 {[%clk 0:02:59]}  c6 {[%clk 0:02:56]} 5. Qe2 {[%clk 0:02:59]}  e6 {[%clk 0:02:56]} 6. Nf3 {[%clk 0:02:59]}  Nd7 {[%clk 0:02:56]} 7. O-O {[%clk 0:02:56]}  h6 {[%clk 0:02:55]} 8. c4 {[%clk 0:02:52]}  dxc4 {[%clk 0:02:51]} 9. dxc4 {[%clk 0:02:52]}  e5 {[%clk 0:02:49]} 10. b3 {[%clk 0:02:46]}  Ne7 {[%clk 0:02:48]} 11. Ba3 {[%clk 0:02:46]}  O-O {[%clk 0:02:48]} 12. Rd1 {[%clk 0:02:45]}  Re8 {[%clk 0:02:48]} 13. Nc3 {[%clk 0:02:39]}  Qa5 {[%clk 0:02:43]} 14. Qb2 {[%clk 0:02:17]}  Nf8 {[%clk 0:02:28]} 15. Bd6 {[%clk 0:02:05]}  Bg4 {[%clk 0:02:14]} 16. b4 {[%clk 0:01:58]}  Qa6 {[%clk 0:02:03]} 17. Nxe5 {[%clk 0:01:53]}  Bxd1 {[%clk 0:02:02]} 18. Rxd1 {[%clk 0:01:49]}  Bxe5 {[%clk 0:01:44]} 19. Bxe5 {[%clk 0:01:43]}  Qxc4 {[%clk 0:01:45]} 20. Bf4 {[%clk 0:01:25]}  Kh7 {[%clk 0:01:23]} 21. h4 {[%clk 0:01:13]}  Rad8 {[%clk 0:01:20]} 22. Re1 {[%clk 0:00:57]}  Rd3 {[%clk 0:01:09]} 23. Nd1 {[%clk 0:00:45]}  Qd4 {[%clk 0:01:04]} 24. Qc1 {[%clk 0:00:38]}  Rd8 {[%clk 0:00:59]} 25. Ne3 {[%clk 0:00:20]}  Rc3 {[%clk 0:00:50]} 26. Qb2 {[%clk 0:00:14]}  Ne6 {[%clk 0:00:49]} 27. Nc2 {[%clk 0:00:13]}  Qd3 {[%clk 0:00:45]} 28. Rc1 {[%clk 0:00:11]}  Nxf4 {[%clk 0:00:43]} 29. gxf4 {[%clk 0:00:12]}  Qd2 {[%clk 0:00:43]} 30. h5 {[%clk 0:00:03]}  Rdd3 {[%clk 0:00:36]} 0-1


[Site "https://www.chess.com"]

[Event "Titled Tuesday Blitz May 9 Late 2023"]
[White "Pein, Jonathan"]
[Black "Carrasco Miranda, Andres"]
[WhiteFideId "417092"]
[BlackFideId "3405990"]
[WhiteElo "2151"]
[BlackElo "2183"]
[Result "1-0"]
[Round "07"]
[TimeControl "180+2"]
[Date "2023.05.09"]
[WhiteClock "0:00:17"]
[BlackClock "0:00:10"]

1. e4 {[%clk 0:02:58]}  e5 {[%clk 0:02:59]} 2. Nf3 {[%clk 0:02:57]}  Nc6 {[%clk 0:02:58]} 3. Nc3 {[%clk 0:02:56]}  Nf6 {[%clk 0:02:57]} 4. d4 {[%clk 0:02:57]}  exd4 {[%clk 0:02:57]} 5. Nd5 {[%clk 0:02:58]}  h6 {[%clk 0:02:32]} 6. Bf4 {[%clk 0:02:57]}  d6 {[%clk 0:02:31]} 7. Nxd4 {[%clk 0:02:57]}  Nxd5 {[%clk 0:02:22]} 8. exd5 {[%clk 0:02:57]}  Ne5 {[%clk 0:02:23]} 9. Be2 {[%clk 0:02:54]}  Be7 {[%clk 0:02:21]} 10. Qd2 {[%clk 0:02:54]}  Bg5 {[%clk 0:02:20]} 11. O-O-O {[%clk 0:02:52]}  Bxf4 {[%clk 0:02:20]} 12. Qxf4 {[%clk 0:02:53]}  Qg5 {[%clk 0:02:20]} 13. Qxg5 {[%clk 0:02:42]}  hxg5 {[%clk 0:02:21]} 14. Nb5 {[%clk 0:02:41]}  Kd8 {[%clk 0:02:20]} 15. h3 {[%clk 0:02:32]}  Bd7 {[%clk 0:02:15]} 16. Nd4 {[%clk 0:02:32]}  Ke7 {[%clk 0:02:02]} 17. Rde1 {[%clk 0:02:31]}  Kf6 {[%clk 0:02:02]} 18. Rhf1 {[%clk 0:02:24]}  g6 {[%clk 0:02:02]} 19. f4 {[%clk 0:02:15]}  gxf4 {[%clk 0:02:03]} 20. Rxf4+ {[%clk 0:02:16]}  Kg7 {[%clk 0:02:03]} 21. Nf3 {[%clk 0:02:13]}  f5 {[%clk 0:01:59]} 22. Nxe5 {[%clk 0:02:06]}  dxe5 {[%clk 0:02:00]} 23. Rc4 {[%clk 0:02:06]}  Rac8 {[%clk 0:02:00]} 24. Bd1 {[%clk 0:01:59]}  Kf6 {[%clk 0:01:57]} 25. Re3 {[%clk 0:01:56]}  b6 {[%clk 0:01:54]} 26. Rec3 {[%clk 0:01:53]}  Ke7 {[%clk 0:01:23]} 27. Rxc7 {[%clk 0:01:52]}  Rxc7 {[%clk 0:01:24]} 28. Rxc7 {[%clk 0:01:51]}  Kd6 {[%clk 0:01:25]} 29. Rxa7 {[%clk 0:01:51]}  f4 {[%clk 0:01:24]} 30. c4 {[%clk 0:01:44]}  Bf5 {[%clk 0:01:22]} 31. b4 {[%clk 0:01:39]}  e4 {[%clk 0:01:20]} 32. Rb7 {[%clk 0:01:33]}  e3 {[%clk 0:01:17]} 33. Rxb6+ {[%clk 0:01:29]}  Ke5 {[%clk 0:01:17]} 34. a4 {[%clk 0:01:19]}  Rc8 {[%clk 0:01:10]} 35. Be2 {[%clk 0:01:03]}  Be4 {[%clk 0:01:07]} 36. Re6+ {[%clk 0:00:38]}  Kd4 {[%clk 0:01:07]} 37. Rxe4+ {[%clk 0:00:36]}  Kxe4 {[%clk 0:01:08]} 38. d6 {[%clk 0:00:36]}  Ke5 {[%clk 0:00:24]} 39. c5 {[%clk 0:00:36]}  Rb8 {[%clk 0:00:20]} 40. Bb5 {[%clk 0:00:19]}  g5 {[%clk 0:00:18]} 41. Kd1 {[%clk 0:00:18]}  g4 {[%clk 0:00:19]} 42. hxg4 {[%clk 0:00:18]}  Kd4 {[%clk 0:00:19]} 43. Ke2 {[%clk 0:00:18]}  Kc3 {[%clk 0:00:16]} 44. c6 {[%clk 0:00:18]}  Kxb4 {[%clk 0:00:15]} 45. c7 {[%clk 0:00:18]}  Rh8 {[%clk 0:00:10]} 46. d7 {[%clk 0:00:17]} 1-0


[Site "https://www.chess.com"]

[Event "Titled Tuesday Blitz May 9 Late 2023"]
[White "D`Arruda, Ricardo D."]
[Black "Zampronha, Wladimir Camilo"]
[WhiteFideId "100692"]
[BlackFideId "2103087"]
[WhiteElo "2410"]
[BlackElo "2176"]
[Result "1-0"]
[Round "07"]
[TimeControl "180+2"]
[Date "2023.05.09"]
[WhiteClock "0:00:18"]
[BlackClock "0:00:00"]

1. Nf3 {[%clk 0:01:39]}  Nf6 {[%clk 0:02:58]} 2. g3 {[%clk 0:01:40]}  e6 {[%clk 0:02:59]} 3. Bg2 {[%clk 0:01:41]}  d5 {[%clk 0:02:59]} 4. O-O {[%clk 0:01:41]}  Be7 {[%clk 0:03:00]} 5. d3 {[%clk 0:01:42]}  c5 {[%clk 0:02:59]} 6. Nbd2 {[%clk 0:01:43]}  Nc6 {[%clk 0:02:58]} 7. e4 {[%clk 0:01:44]}  O-O {[%clk 0:02:57]} 8. Qe2 {[%clk 0:01:44]}  b5 {[%clk 0:02:51]} 9. e5 {[%clk 0:01:44]}  Nd7 {[%clk 0:02:51]} 10. a4 {[%clk 0:01:45]}  b4 {[%clk 0:02:50]} 11. h4 {[%clk 0:01:43]}  Ba6 {[%clk 0:02:45]} 12. Re1 {[%clk 0:01:43]}  c4 {[%clk 0:02:44]} 13. d4 {[%clk 0:01:42]}  c3 {[%clk 0:02:39]} 14. Qxa6 {[%clk 0:01:41]}  cxd2 {[%clk 0:02:38]} 15. Bxd2 {[%clk 0:01:42]}  Qb6 {[%clk 0:02:31]} 16. Qd3 {[%clk 0:01:36]}  a5 {[%clk 0:02:28]} 17. Bf1 {[%clk 0:01:34]}  Rfc8 {[%clk 0:02:25]} 18. b3 {[%clk 0:01:33]}  Rc7 {[%clk 0:02:20]} 19. Qe3 {[%clk 0:01:33]}  Rac8 {[%clk 0:02:18]} 20. Bd3 {[%clk 0:01:33]}  Nf8 {[%clk 0:02:13]} 21. Qf4 {[%clk 0:01:31]}  Ng6 {[%clk 0:01:57]} 22. Qg4 {[%clk 0:01:31]}  Bf8 {[%clk 0:01:50]} 23. h5 {[%clk 0:01:30]}  Nge7 {[%clk 0:01:51]} 24. Bh6 {[%clk 0:01:26]}  Kh8 {[%clk 0:01:49]} 25. Be3 {[%clk 0:01:23]}  Nd8 {[%clk 0:01:37]} 26. h6 {[%clk 0:01:17]}  g6 {[%clk 0:01:35]} 27. Bg5 {[%clk 0:01:14]}  Kg8 {[%clk 0:01:34]} 28. Bf6 {[%clk 0:01:14]}  Nf5 {[%clk 0:01:28]} 29. Kg2 {[%clk 0:01:09]}  Nxh6 {[%clk 0:01:24]} 30. Qh3 {[%clk 0:01:09]}  Nf5 {[%clk 0:01:09]} 31. Rh1 {[%clk 0:01:03]}  h6 {[%clk 0:01:09]} 32. Rad1 {[%clk 0:00:57]}  Rxc2 {[%clk 0:01:04]} 33. Bxc2 {[%clk 0:00:57]}  Rxc2 {[%clk 0:01:04]} 34. Rhe1 {[%clk 0:00:48]}  Rc3 {[%clk 0:01:00]} 35. g4 {[%clk 0:00:43]}  Nxd4 {[%clk 0:00:53]} 36. Rxd4 {[%clk 0:00:41]}  Rxf3 {[%clk 0:00:52]} 37. Qxf3 {[%clk 0:00:38]}  Qxd4 {[%clk 0:00:53]} 38. Bxd8 {[%clk 0:00:38]}  Bc5 {[%clk 0:00:45]} 39. Bf6 {[%clk 0:00:37]}  Qd2 {[%clk 0:00:42]} 40. Rd1 {[%clk 0:00:37]}  Qc2 {[%clk 0:00:40]} 41. Bh4 {[%clk 0:00:33]}  Bf8 {[%clk 0:00:34]} 42. Qd3 {[%clk 0:00:31]}  Qc7 {[%clk 0:00:32]} 43. Qe3 {[%clk 0:00:28]}  Bg7 {[%clk 0:00:29]} 44. Bg3 {[%clk 0:00:29]}  Qc2 {[%clk 0:00:25]} 45. Rc1 {[%clk 0:00:29]}  Qb2 {[%clk 0:00:24]} 46. Rc8+ {[%clk 0:00:29]}  Kh7 {[%clk 0:00:22]} 47. Qa7 {[%clk 0:00:26]}  Qc2 {[%clk 0:00:16]} 48. Qxf7 {[%clk 0:00:25]}  Qxc8 {[%clk 0:00:15]} 49. Qe7 {[%clk 0:00:18]}  Qc6 {[%clk 0:00:15]} 50. Bh4 {[%clk 0:00:18]}  Qc2 {[%clk 0:00:09]} 51. Bf6 {[%clk 0:00:17]}  Qe4+ {[%clk 0:00:10]} 52. Kg1 {[%clk 0:00:18]}  Qxg4+ {[%clk 0:00:10]} 53. Kf1 {[%clk 0:00:18]}  Qd1+ {[%clk 0:00:10]} 54. Kg2 {[%clk 0:00:19]}  Qg4+ {[%clk 0:00:10]} 55. Kh2 {[%clk 0:00:20]}  Qh5+ {[%clk 0:00:00]} 56. Kg3 {[%clk 0:00:18]} 1-0


[Site "https://www.chess.com"]

[Event "Titled Tuesday Blitz May 9 Late 2023"]
[White "ElenGajger"]
[Black "Cooklev, Steven"]
[BlackFideId "2050552"]
[WhiteElo "2404"]
[BlackElo "2281"]
[Result "1-0"]
[Round "07"]
[TimeControl "180+2"]
[Date "2023.05.09"]
[WhiteClock "0:00:36"]
[BlackClock "0:00:00"]

1. e4 {[%clk 0:02:59]}  c5 {[%clk 0:02:59]} 2. Nc3 {[%clk 0:02:58]}  Nc6 {[%clk 0:02:59]} 3. Bb5 {[%clk 0:02:58]}  Nd4 {[%clk 0:02:57]} 4. Bc4 {[%clk 0:02:57]}  e6 {[%clk 0:02:57]} 5. Nf3 {[%clk 0:02:57]}  Nf6 {[%clk 0:02:49]} 6. O-O {[%clk 0:02:56]}  a6 {[%clk 0:02:48]} 7. d3 {[%clk 0:02:54]}  b5 {[%clk 0:02:47]} 8. Bb3 {[%clk 0:02:54]}  Nxb3 {[%clk 0:02:28]} 9. axb3 {[%clk 0:02:55]}  Bb7 {[%clk 0:02:28]} 10. Ne1 {[%clk 0:02:46]}  d6 {[%clk 0:02:24]} 11. f4 {[%clk 0:02:46]}  Be7 {[%clk 0:02:17]} 12. Nf3 {[%clk 0:02:45]}  Qc7 {[%clk 0:02:12]} 13. Bd2 {[%clk 0:02:45]}  O-O {[%clk 0:01:55]} 14. Qe1 {[%clk 0:02:44]}  d5 {[%clk 0:01:49]} 15. e5 {[%clk 0:02:37]}  Nd7 {[%clk 0:01:48]} 16. Qg3 {[%clk 0:02:32]}  f5 {[%clk 0:01:41]} 17. exf6 {[%clk 0:02:27]}  Bxf6 {[%clk 0:01:41]} 18. Rae1 {[%clk 0:02:25]}  Rae8 {[%clk 0:01:40]} 19. Ne5 {[%clk 0:02:11]}  b4 {[%clk 0:00:57]} 20. Na4 {[%clk 0:02:00]}  Bxe5 {[%clk 0:00:53]} 21. fxe5 {[%clk 0:01:59]}  Rxf1+ {[%clk 0:00:54]} 22. Rxf1 {[%clk 0:01:55]}  Qxe5 {[%clk 0:00:50]} 23. Qxe5 {[%clk 0:01:52]}  Nxe5 {[%clk 0:00:50]} 24. Nxc5 {[%clk 0:01:53]}  Bc8 {[%clk 0:00:46]} 25. Bxb4 {[%clk 0:01:49]}  Nc6 {[%clk 0:00:40]} 26. Bd2 {[%clk 0:01:37]}  e5 {[%clk 0:00:29]} 27. h3 {[%clk 0:01:35]}  Nd4 {[%clk 0:00:18]} 28. c3 {[%clk 0:01:29]}  Ne6 {[%clk 0:00:19]} 29. Nxe6 {[%clk 0:01:18]}  Bxe6 {[%clk 0:00:19]} 30. Be1 {[%clk 0:01:07]}  Bf7 {[%clk 0:00:19]} 31. Bg3 {[%clk 0:01:03]}  Bg6 {[%clk 0:00:18]} 32. Re1 {[%clk 0:00:58]}  e4 {[%clk 0:00:16]} 33. dxe4 {[%clk 0:00:58]}  Bxe4 {[%clk 0:00:15]} 34. Rf1 {[%clk 0:00:52]}  Rf8 {[%clk 0:00:15]} 35. Bf2 {[%clk 0:00:46]}  Rb8 {[%clk 0:00:11]} 36. b4 {[%clk 0:00:45]}  Rf8 {[%clk 0:00:11]} 37. Ra1 {[%clk 0:00:44]}  Rf6 {[%clk 0:00:10]} 38. Ra5 {[%clk 0:00:43]}  Kf7 {[%clk 0:00:08]} 39. b5 {[%clk 0:00:42]}  axb5 {[%clk 0:00:08]} 40. Rxb5 {[%clk 0:00:43]}  Ra6 {[%clk 0:00:06]} 41. Rb7+ {[%clk 0:00:41]}  Kg6 {[%clk 0:00:07]} 42. Bd4 {[%clk 0:00:41]}  Ra1+ {[%clk 0:00:05]} 43. Kh2 {[%clk 0:00:41]}  Rb1 {[%clk 0:00:05]} 44. Rxg7+ {[%clk 0:00:41]}  Kf5 {[%clk 0:00:03]} 45. b4 {[%clk 0:00:40]}  Rb2 {[%clk 0:00:03]} 46. h4 {[%clk 0:00:39]}  h5 {[%clk 0:00:02]} 47. Rg5+ {[%clk 0:00:39]}  Kf4 {[%clk 0:00:02]} 48. Kh3 {[%clk 0:00:37]}  Rc2 {[%clk 0:00:01]} 49. b5 {[%clk 0:00:36]}  Rb2 {[%clk 0:00:00]} 50. b6 {[%clk 0:00:36]} 1-0


[Site "https://www.chess.com"]

[Event "Titled Tuesday Blitz May 9 Late 2023"]
[White "Vaglio Munoz, Jaime"]
[Black "Kujawski, Adam"]
[WhiteFideId "6500145"]
[BlackFideId "1100920"]
[WhiteElo "2199"]
[BlackElo "2054"]
[Result "1-0"]
[Round "07"]
[TimeControl "180+2"]
[Date "2023.05.09"]
[WhiteClock "0:01:39"]
[BlackClock "0:00:25"]

1. d4 {[%clk 0:02:49]}  Nf6 {[%clk 0:02:59]} 2. b3 {[%clk 0:02:47]}  d5 {[%clk 0:02:50]} 3. g3 {[%clk 0:02:45]}  g6 {[%clk 0:02:50]} 4. Bg2 {[%clk 0:02:45]}  Bg7 {[%clk 0:02:50]} 5. Bb2 {[%clk 0:02:44]}  O-O {[%clk 0:02:50]} 6. Nd2 {[%clk 0:02:44]}  b5 {[%clk 0:02:47]} 7. a4 {[%clk 0:02:43]}  b4 {[%clk 0:02:47]} 8. e4 {[%clk 0:02:36]}  Bb7 {[%clk 0:02:44]} 9. e5 {[%clk 0:02:35]}  Ne4 {[%clk 0:02:43]} 10. f3 {[%clk 0:02:26]}  Nxd2 {[%clk 0:02:24]} 11. Qxd2 {[%clk 0:02:26]}  c5 {[%clk 0:02:23]} 12. f4 {[%clk 0:02:22]}  a5 {[%clk 0:02:15]} 13. Ne2 {[%clk 0:02:14]}  Qc8 {[%clk 0:02:09]} 14. dxc5 {[%clk 0:02:12]}  Nd7 {[%clk 0:02:03]} 15. O-O-O {[%clk 0:02:00]}  Nxc5 {[%clk 0:02:00]} 16. Kb1 {[%clk 0:01:59]}  Rd8 {[%clk 0:01:52]} 17. Nd4 {[%clk 0:01:58]}  e6 {[%clk 0:01:42]} 18. h4 {[%clk 0:01:57]}  Ne4 {[%clk 0:01:35]} 19. Qe3 {[%clk 0:01:56]}  Qc5 {[%clk 0:01:22]} 20. h5 {[%clk 0:01:43]}  Rac8 {[%clk 0:01:21]} 21. hxg6 {[%clk 0:01:41]}  Qxc2+ {[%clk 0:00:25]} 22. Nxc2 {[%clk 0:01:39]} 1-0


[Site "https://www.chess.com"]